bitfinex/quotes_SOLUSD_20220212
["timestamp","ask_amount","ask_price","bid_price","bid_amount"]
[1644637605494,0.51668159,97.243,97.23,15.4248]
[1644637605894,0.51668159,97.243,97.231,2.38366791]
[1644637607094,3.02780003,97.24,97.231,2.38366791]
[1644637607296,6.06,97.24,97.231,2.38366791]
[1644637607495,0.51668159,97.243,97.231,2.38366791]
[1644637610697,0.51668159,97.243,97.23,15.4248]
[1644637613603,0.51668159,97.243,97.231,2.38366791]
[1644637613802,0.51668159,97.243,97.232,5.142]
[1644637615726,0.51668159,97.243,97.233,2.38366791]
[1644637615925,0.51668159,97.243,97.233,26.31746791]
[1644637616325,0.51668159,97.243,97.233,23.9338]
[1644637619228,0.03548146,97.28,97.234,2.38366791]
[1644637619428,23.3261,97.287,97.24,15.421]
[1644637620128,23.3261,97.287,97.241,2.38366791]
[1644637621830,23.3261,97.287,97.251,37.99563448]
[1644637623735,23.3261,97.287,97.26,15.4197]
[1644637624636,23.3261,97.287,97.261,2.38366791]
[1644637625036,23.3261,97.287,97.26,15.4197]
[1644637626137,0.03548146,97.29,97.26,17.80336791]
[1644637626337,28.387,97.314,97.26,17.80336791]
[1644637626536,28.387,97.314,97.26,15.4197]
[1644637629939,28.387,97.314,97.25,15.4228]
[1644637631143,28.387,97.314,97.23,17.80836791]
[1644637631344,0.03548146,97.3,97.23,15.4247]
[1644637631544,5.14,97.299,97.213,1.45967123]
[1644637631747,14.88,97.29,97.208,1.45967123]
[1644637631949,0.03548146,97.28,97.194,1.45967123]
[1644637632148,14.88,97.27,97.182,35.00162157]
[1644637632347,0.03548146,97.26,97.19,15.4324]
[1644637632547,5.142,97.259,97.182,36.4612928]
[1644637632747,0.03548146,97.25,97.182,35.00162157]
[1644637633145,0.03548146,97.25,97.183,2.38366791]
[1644637633346,0.03548146,97.25,97.187,1.45967123]
[1644637633546,0.03548146,97.25,97.19,15.4321]
[1644637633748,5.143,97.249,97.19,15.4321]
[1644637633948,40.67922304,97.248,97.19,15.4321]
[1644637634349,5.143,97.247,97.19,15.4321]
[1644637634550,22.832,97.246,97.19,15.4321]
[1644637634749,5.143,97.245,97.19,15.4321]
[1644637636558,4.143,97.245,97.19,15.4321]
[1644637636956,22.832,97.246,97.19,15.4321]
[1644637637356,22.832,97.246,97.191,2.38366791]
[1644637637555,22.832,97.246,97.2,15.4301]
[1644637637957,22.832,97.246,97.201,2.38366791]
[1644637638957,22.832,97.246,97.202,43.49748251]
[1644637639358,22.832,97.246,97.203,2.38366791]
[1644637639759,22.832,97.246,97.21,15.4275]
[1644637641362,22.832,97.246,97.2,15.4309]
[1644637641560,5.143,97.245,97.174,1.45967123]
[1644637641767,5.143,97.245,97.172,2.38366791]
[1644637642364,5.143,97.245,97.18,15.4341]
[1644637642561,0.03548146,97.25,97.18,15.4341]
[1644637642760,0.03548146,97.26,97.181,2.38366791]
[1644637642962,0.03548146,97.25,97.19,66.3007]
[1644637643160,0.03548146,97.27,97.191,1.45967123]
[1644637643363,0.03548146,97.25,97.192,25.24267123]
[1644637643561,0.03548146,97.26,97.195,1.45967123]
[1644637643760,0.03548146,97.25,97.197,1.45967123]
[1644637643962,0.03548146,97.26,97.2,30.3062]
[1644637644163,0.03548146,97.25,97.2,30.3062]
[1644637644362,0.03548146,97.26,97.201,2.38366791]
[1644637645665,0.03548146,97.26,97.21,15.4244]
[1644637645864,0.03548146,97.28,97.211,71.46929437]
[1644637646065,0.03548146,97.27,97.22,51.4096]
[1644637646263,0.03548146,97.28,97.22,51.4096]
[1644637646664,0.03548146,97.28,97.221,2.38366791]
[1644637646865,0.03548146,97.28,97.23,15.4229]
[1644637647063,22.6096,97.283,97.231,5.141]
[1644637647064,37.22326832,97.282,97.231,5.141]
[1644637647264,42.36426832,97.282,97.23,11.07939827]
[1644637647864,42.36426832,97.282,97.24,15.4236]
[1644637648064,0.03548146,97.28,97.207,2.38366791]
[1644637648265,5.141,97.279,97.191,5.141]
[1644637648465,0.03548146,97.27,97.183,24.4985]
[1644637648665,5.142,97.269,97.183,24.4985]
[1644637648866,23.3289,97.268,97.184,35.50208581]
[1644637649068,42.29427961,97.267,97.19,15.4323]
[1644637653072,42.29427961,97.267,97.175,1.45967123]
[1644637653271,42.29427961,97.267,97.18,15.434]
[1644637654874,15.434,97.26,97.18,15.434]
[1644637655074,0.03548146,97.25,97.18,15.434]
[1644637655376,36.31475563,97.248,97.18,15.434]
[1644637655574,28.6854,97.247,97.18,15.434]
[1644637657192,28.6854,97.247,97.181,2.38366791]
[1644637657593,28.6854,97.247,97.19,15.4323]
[1644637659096,28.6854,97.247,97.18,15.4341]
[1644637659895,28.6854,97.247,97.168,2.38366791]
[1644637660097,15.4372,97.24,97.163,1.45967123]
[1644637660398,5.143,97.239,97.152,1.45967123]
[1644637660596,7.52666791,97.239,97.14,0.024]
[1644637660794,7.52666791,97.239,97.131,1.45967123]
[1644637660997,2.38366791,97.238,97.14,0.024]
[1644637661197,5.144,97.237,97.135,44.42492463]
[1644637661397,5.144,97.237,97.15,0.024]
[1644637661893,15.4424,97.22,97.15,0.024]
[1644637662094,14.88,97.21,97.15,0.024]
[1644637662295,5.144,97.209,97.14,0.024]
[1644637662495,5.144,97.209,97.15,0.024]
[1644637662794,5.144,97.209,97.141,2.38366791]
[1644637662997,24.6832,97.208,97.15,0.024]
[1644637663196,24.6832,97.208,97.14,15.4401]
[1644637663197,48.31081218,97.219,97.151,2.38366791]
[1644637663394,48.31081218,97.219,97.156,1.45967123]
[1644637663594,5.144,97.218,97.156,1.45967123]
[1644637663794,5.144,97.218,97.157,2.38366791]
[1644637664606,5.144,97.218,97.16,15.4367]
[1644637664807,5.144,97.218,97.15,0.024]
[1644637665007,24.3102,97.217,97.15,0.024]
[1644637665211,5.144,97.216,97.15,0.024]
[1644637665907,5.144,97.216,97.14,15.4402]
[1644637665908,5.144,97.216,97.14,15.4642]
[1644637666110,5.144,97.216,97.15,0.024]
[1644637666910,5.144,97.216,97.15,2.40766791]
[1644637667310,24.3102,97.217,97.15,2.40766791]
[1644637667910,24.3102,97.217,97.15,17.84626791]
[1644637671117,24.3102,97.217,97.15,15.4626]
[1644637671419,5.144,97.216,97.15,15.4626]
[1644637671617,5.144,97.216,97.15,0.024]
[1644637671824,5.144,97.216,97.151,2.38366791]
[1644637672120,5.144,97.216,97.152,46.12078934]
[1644637672419,5.144,97.216,97.153,2.38366791]
[1644637672624,24.3102,97.217,97.153,2.38366791]
[1644637673019,24.3102,97.217,97.16,15.437]
[1644637673227,5.144,97.245,97.16,15.437]
[1644637673420,29.1465,97.245,97.161,2.38366791]
[1644637674021,46.02613153,97.244,97.161,2.38366791]
[1644637674319,5.143,97.243,97.161,2.38366791]
[1644637674721,5.143,97.243,97.18,15.4335]
[1644637674922,5.143,97.243,97.181,22.6642]
[1644637675122,5.143,97.243,97.181,25.04786791]
[1644637675521,5.143,97.243,97.182,2.38366791]
[1644637676732,5.143,97.243,97.169,2.38366791]
[1644637676926,14.88,97.24,97.151,1.45967123]
[1644637677127,5.144,97.239,97.151,1.45967123]
[1644637677324,5.144,97.239,97.15,0.024]
[1644637677824,5.144,97.239,97.16,15.4371]
[1644637678024,5.144,97.239,97.16,31.31451575]
[1644637678625,5.144,97.239,97.161,2.38366791]
[1644637678824,5.144,97.239,97.17,15.4355]
[1644637680233,5.144,97.239,97.171,23.3931]
[1644637682135,5.144,97.239,97.17,15.4355]
[1644637682333,5.144,97.239,97.18,15.434]
[1644637682534,5.144,97.239,97.18,50.55181405]
[1644637683237,5.143,97.243,97.18,50.55181405]
[1644637689537,5.143,97.243,97.18,15.434]
[1644637690564,5.143,97.243,97.171,22.6171]
[1644637690963,5.143,97.243,97.172,2.38366791]
[1644637694968,15.4376,97.24,97.172,2.38366791]
[1644637695168,15.4376,97.24,97.17,0.024]
[1644637695169,14.88,97.23,97.17,0.024]
[1644637695368,5.144,97.229,97.15,0.024]
[1644637695568,29.0804,97.229,97.17,0.024]
[1644637695770,29.0804,97.229,97.15,0.024]
[1644637695969,45.7803313,97.228,97.15,0.024]
[1644637696168,5.144,97.227,97.15,0.024]
[1644637696870,15.4405,97.22,97.15,0.024]
[1644637697068,5.144,97.219,97.15,0.024]
[1644637698269,15.4421,97.21,97.15,0.024]
[1644637698471,30.3221,97.21,97.14,0.024]
[1644637698672,5.144,97.209,97.14,0.024]
[1644637699069,68.43335627,97.208,97.14,0.024]
[1644637699268,5.144,97.207,97.14,0.024]
[1644637700372,15.4438,97.2,97.14,0.024]
[1644637700571,5.144,97.199,97.14,0.024]
[1644637700771,5.144,97.199,97.131,23.8771]
[1644637701971,5.144,97.199,97.13,0.024]
[1644637702873,43.05408726,97.189,97.13,0.024]
[1644637703073,5.146,97.188,97.13,0.024]
[1644637703679,24.2352,97.187,97.13,0.024]
[1644637703878,5.146,97.186,97.13,0.024]
[1644637704478,24.2352,97.187,97.13,0.024]
[1644637705776,5.146,97.186,97.13,0.024]
[1644637715393,24.2352,97.187,97.131,2.38366791]
[1644637715593,5.146,97.186,97.13,0.024]
[1644637717195,24.2352,97.187,97.131,2.38366791]
[1644637717395,5.146,97.186,97.13,0.024]
[1644637720798,24.2352,97.187,97.13,0.024]
[1644637723699,5.146,97.186,97.13,0.024]
[1644637728405,5.146,97.186,97.116,1.45967123]
[1644637728606,5.146,97.186,97.12,0.024]
[1644637729006,5.146,97.186,97.107,1.45967123]
[1644637729207,5.146,97.186,97.12,0.024]
[1644637729806,15.4476,97.18,97.106,1.45967123]
[1644637730010,41.78000171,97.169,97.12,0.024]
[1644637730207,28.3502,97.168,97.11,0.024]
[1644637730410,28.3502,97.168,97.104,1.45967123]
[1644637730411,28.3502,97.168,97.098,1.45967123]
[1644637730608,26.19856791,97.167,97.09,1.48367123]
[1644637730807,201.44,97.16,97.068,1.45888465]
[1644637731008,46.54562036,97.149,97.035,2.91559933]
[1644637731209,5.149,97.148,97.031,3.50709257]
[1644637731407,29.5586,97.148,97.031,3.50709257]
[1644637731609,31.94226791,97.148,97.032,2.38366791]
[1644637731814,15.4589,97.12,97.032,2.38366791]
[1644637732014,14.88,97.11,97.033,3.50709257]
[1644637732213,5.15,97.109,97.033,3.50709257]
[1644637732414,5.15,97.109,97.03,15.4566]
[1644637732915,48.20722245,97.108,97.03,15.4566]
[1644637733315,24.7503,97.107,97.03,15.4566]
[1644637733514,5.151,97.106,97.03,15.4566]
[1644637734015,5.151,97.106,97.023,24.2308]
[1644637734016,5.151,97.106,97.04,15.457]
[1644637734416,5.151,97.106,97.041,2.38366791]
[1644637734620,24.7503,97.107,97.041,2.38366791]
[1644637734817,5.15,97.106,97.041,2.38366791]
[1644637735222,24.7503,97.107,97.041,2.38366791]
[1644637735423,24.7503,97.107,97.024,2.38366791]
[1644637735621,5.15,97.106,97.023,24.2308]
[1644637736720,15.4595,97.1,97.03,15.4595]
[1644637736920,5.151,97.099,97.03,15.4595]
[1644637737320,5.151,97.106,97.03,15.4595]
[1644637740842,15.4601,97.1,97.03,15.4595]
[1644637741139,14.88,97.09,97.03,15.4595]
[1644637741341,53.55196926,97.089,97.03,15.4595]
[1644637741838,23.4223,97.088,97.03,15.4595]
[1644637742040,5.151,97.087,97.03,15.4595]
[1644637742841,5.151,97.087,97.02,15.4626]
[1644637744744,15.4633,97.08,97.02,15.4626]
[1644637744943,5.151,97.079,97.02,15.4626]
[1644637745543,5.151,97.079,97.01,15.464]
[1644637746345,15.4643,97.07,97.01,15.464]
[1644637746546,5.152,97.069,97.01,15.464]
[1644637746752,24.7726,97.068,97.01,15.464]
[1644637746951,5.152,97.067,97.001,24.5414]
[1644637747150,5.152,97.067,96.976,2.38366791]
[1644637747350,34.45574401,97.066,96.976,2.38366791]
[1644637747650,5.152,97.065,96.976,2.38366791]
[1644637747852,14.88,97.06,96.976,2.38366791]
[1644637748049,5.152,97.059,96.976,2.38366791]
[1644637748250,14.88,97.06,96.976,2.38366791]
[1644637748850,30.346,97.06,96.99,15.4673]
[1644637749051,5.152,97.059,96.99,15.4673]
[1644637751054,15.4677,97.05,96.99,15.4673]
[1644637751258,5.152,97.049,96.99,15.4673]
[1644637751459,23.0313,97.048,96.99,15.4673]
[1644637751654,5.152,97.047,96.99,15.4673]
[1644637752058,41.37231517,97.046,96.99,15.4673]
[1644637752357,5.152,97.045,96.99,15.4673]
[1644637754559,5.152,97.045,96.98,15.4689]
[1644637759973,5.152,97.066,96.981,2.38366791]
[1644637760173,5.152,97.066,97.0,15.4625]
[1644637760375,5.152,97.109,97.0,15.4625]
[1644637760574,5.152,97.079,97.001,52.17916791]
[1644637760773,5.151,97.108,97.001,52.17916791]
[1644637760976,5.152,97.078,97.002,44.67158575]
[1644637761175,46.80299375,97.077,97.002,44.67158575]
[1644637761376,5.152,97.076,97.003,2.38366791]
[1644637761874,5.152,97.076,97.02,15.4607]
[1644637764379,5.152,97.076,97.001,49.7955]
[1644637764578,5.152,97.076,96.93,191.47]
[1644637764579,28.9319,97.076,96.98,51.5465]
[1644637764780,2.38366791,97.075,96.98,51.5465]
[1644637765082,5.152,97.074,96.981,5.88407347]
[1644637765284,5.152,97.075,96.985,2.91559933]
[1644637765492,46.80299375,97.077,96.988,2.91559933]
[1644637765493,5.152,97.076,96.988,2.91559933]
[1644637765692,5.152,97.074,96.986,2.91559933]
[1644637765893,5.152,97.075,96.986,2.91559933]
[1644637766098,5.152,97.076,96.986,2.91559933]
[1644637766995,5.152,97.076,96.99,15.467]
[1644637767196,28.5255,97.076,96.991,3.50040556]
[1644637767795,28.5255,97.076,97.01,15.4624]
[1644637768895,5.152,97.076,97.01,15.4624]
[1644637769097,5.152,97.076,97.01,14.9624]
[1644637771400,46.80299375,97.077,97.01,14.9624]
[1644637771800,5.152,97.076,97.01,14.9624]
[1644637773600,5.152,97.076,97.011,3.50407882]
[1644637773805,5.152,97.098,97.011,5.88774673]
[1644637774002,5.152,97.098,97.03,15.4572]
[1644637774606,36.2517309,97.097,97.031,39.16163604]
[1644637774806,5.151,97.096,97.031,39.16163604]
[1644637775806,5.151,97.096,97.05,15.4568]
[1644637776417,5.15,97.127,97.051,2.38366791]
[1644637776908,5.149,97.159,97.07,15.4521]
[1644637777109,5.148,97.167,97.07,15.4521]
[1644637777313,45.78121536,97.166,97.071,40.75309549]
[1644637777510,5.148,97.165,97.071,40.75309549]
[1644637777710,5.148,97.165,97.072,26.21526791]
[1644637777911,5.148,97.165,97.09,15.4471]
[1644637782717,15.4501,97.16,97.09,15.4471]
[1644637782916,5.148,97.159,97.06,51.5054]
[1644637783114,5.148,97.159,97.08,15.453]
[1644637784817,15.453,97.15,97.08,15.453]
[1644637785017,46.29017686,97.148,97.08,15.453]
[1644637785217,28.8927,97.147,97.08,15.453]
[1644637788326,15.4531,97.14,97.08,15.453]
[1644637788625,5.148,97.139,97.08,15.453]
[1644637793731,5.148,97.146,97.08,15.453]
[1644637795832,5.148,97.146,97.1,15.4493]
[1644637796033,23.7447,97.147,97.1,15.4493]
[1644637796233,46.29017686,97.148,97.1,15.4493]
[1644637797236,5.148,97.147,97.1,15.4493]
[1644637798034,46.29017686,97.148,97.1,15.4493]
[1644637798235,5.148,97.166,97.1,15.4493]
[1644637798440,5.147,97.167,97.12,15.4449]
[1644637798636,5.147,97.179,97.12,15.4449]
[1644637798839,5.146,97.189,97.121,27.04346791]
[1644637799039,22.9078,97.197,97.121,2.38366791]
[1644637799040,5.147,97.196,97.121,2.38366791]
[1644637799257,47.62196387,97.195,97.122,12.81456916]
[1644637799457,47.62196387,97.195,97.14,15.4426]
[1644637799659,47.62196387,97.195,97.141,35.85048077]
[1644637799859,47.62196387,97.195,97.141,38.23414868]
[1644637800058,28.1251,97.218,97.141,38.23414868]
[1644637800259,28.1251,97.218,97.142,2.38366791]
[1644637800658,28.1251,97.218,97.141,35.85048077]
[1644637800858,28.1251,97.218,97.123,2.38366791]
[1644637800859,28.1251,97.218,97.15,15.4389]
[1644637801859,38.85633532,97.217,97.15,15.4389]
[1644637802062,5.144,97.216,97.15,15.4389]
[1644637805664,38.85633532,97.217,97.15,15.4389]
[1644637807066,5.144,97.216,97.15,15.4389]
[1644637812777,30.3223,97.21,97.14,15.443]
[1644637812973,5.144,97.209,97.14,15.443]
[1644637813876,40.86475573,97.199,97.14,15.443]
[1644637814175,5.144,97.198,97.14,15.443]
[1644637814775,30.0945,97.198,97.14,15.443]
[1644637819175,30.0945,97.198,97.15,15.4393]
[1644637819176,24.9505,97.198,97.15,15.4393]
[1644637820180,5.144,97.197,97.15,15.4393]
[1644637826410,24.9505,97.198,97.15,15.4393]
[1644637827809,5.144,97.197,97.15,15.4393]
[1644637831715,5.144,97.218,97.151,2.38366791]
[1644637831917,22.687,97.218,97.151,25.61836791]
[1644637832115,22.687,97.218,97.17,15.4374]
[1644637832718,41.24740255,97.217,97.17,15.4374]
[1644637835019,5.144,97.216,97.17,15.4374]
[1644637837523,41.24740255,97.217,97.17,15.4374]
[1644637837725,5.144,97.216,97.16,15.4396]
[1644637841229,5.144,97.216,97.151,23.2347]
[1644637841630,5.144,97.216,97.14,15.4415]
[1644637842831,15.442,97.21,97.14,15.4415]
[1644637843031,5.144,97.209,97.14,15.4415]
[1644637844930,15.4437,97.2,97.12,15.4447]
[1644637845135,14.88,97.19,97.093,23.7696]
[1644637845333,29.8481,97.189,97.093,23.7696]
[1644637845732,42.36186128,97.188,97.093,23.7696]
[1644637845932,29.2263,97.187,97.093,23.7696]
[1644637846832,15.4494,97.17,97.1,15.4479]
[1644637847033,34.33691637,97.168,97.1,15.4479]
[1644637850239,5.147,97.167,97.1,15.4479]
[1644637850438,5.147,97.167,97.101,2.38366791]
[1644637850745,5.147,97.167,97.12,15.445]
[1644637850939,34.33691637,97.168,97.12,15.445]
[1644637852541,5.147,97.179,97.121,2.38366791]
[1644637852741,5.146,97.189,97.13,15.443]
[1644637852942,24.428,97.209,97.13,15.443]
[1644637852943,5.146,97.199,97.13,15.443]
[1644637853241,5.144,97.208,97.131,26.41406791]
[1644637853442,36.68905515,97.197,97.132,36.9061478]
[1644637853643,36.68905515,97.197,97.132,39.28981571]
[1644637853843,36.68905515,97.197,97.133,2.38366791]
[1644637854043,36.68905515,97.197,97.15,15.4403]
[1644637854443,36.68905515,97.197,97.133,2.38366791]
[1644637854742,27.8824,97.196,97.133,2.38366791]
[1644637855847,27.8824,97.196,97.14,15.4422]
[1644637856051,22.7384,97.196,97.14,15.4422]
[1644637857251,36.68905515,97.197,97.14,15.4422]
[1644637858754,5.144,97.196,97.14,15.4422]
[1644637858956,36.68905515,97.197,97.14,15.4422]
[1644637859154,36.68905515,97.197,97.14,17.82586791]
[1644637859577,36.68905515,97.197,97.14,15.4422]
[1644637861776,5.144,97.209,97.14,15.4422]
[1644637861978,0.03538666,97.21,97.16,15.4384]
[1644637862177,5.144,97.218,97.16,15.4384]
[1644637862777,41.28862302,97.217,97.16,15.4384]
[1644637862975,5.144,97.216,97.16,15.4384]
[1644637863577,5.144,97.216,97.131,24.0304]
[1644637863780,5.144,97.216,97.15,15.4406]
[1644637863977,5.144,97.216,97.151,24.8463]
[1644637871787,5.144,97.216,97.152,7.85185257]
[1644637872887,41.28862302,97.217,97.16,15.4394]
[1644637876800,5.144,97.216,97.16,15.4394]
[1644637880107,5.144,97.218,97.161,2.38366791]
[1644637880310,0.03538666,97.22,97.161,2.38366791]
[1644637880311,0.03538666,97.23,97.17,15.4327]
[1644637880506,0.03538666,97.24,97.17,15.4327]
[1644637880707,0.03538666,97.25,97.185,1.45489964]
[1644637880908,0.03538666,97.23,97.187,1.45489964]
[1644637881108,0.03538666,97.24,97.188,24.6951]
[1644637881308,0.03538666,97.26,97.188,27.07876791]
[1644637881506,0.03538666,97.28,97.188,27.07876791]
[1644637881707,0.03538666,97.25,97.189,2.38366791]
[1644637881907,0.03538666,97.27,97.2,15.4292]
[1644637882109,0.03538666,97.28,97.201,5.142]
[1644637882308,0.03538666,97.27,97.202,23.8417]
[1644637882511,5.141,97.279,97.202,26.22536791]
[1644637882708,5.142,97.269,97.203,7.52566791]
[1644637882908,0.03538666,97.27,97.203,7.52566791]
[1644637883110,5.142,97.269,97.22,15.4282]
[1644637883311,0.03538666,97.27,97.22,15.4282]
[1644637883507,5.141,97.279,97.22,15.4282]
[1644637883709,5.141,97.276,97.22,15.4282]
[1644637883907,5.141,97.279,97.22,15.4282]
[1644637884109,22.7658,97.278,97.22,15.4282]
[1644637884309,5.141,97.277,97.22,15.4282]
[1644637887410,5.141,97.277,97.221,2.38366791]
[1644637887611,5.141,97.277,97.23,15.4274]
[1644637891111,22.7658,97.278,97.23,15.4274]
[1644637897445,0.03538666,97.28,97.231,2.38366791]
[1644637897645,0.03538666,97.29,97.24,15.4237]
[1644637897846,5.14,97.309,97.24,15.4237]
[1644637898045,29.5212,97.319,97.241,7.52366791]
[1644637898245,0.03538666,97.3,97.241,2.38366791]
[1644637898446,0.03538666,97.31,97.242,7.52266791]
[1644637898647,0.03538666,97.31,97.243,14.61653607]
[1644637898846,0.03538666,97.31,97.244,24.3396]
[1644637899245,0.03538666,97.31,97.244,26.72326791]
[1644637899447,0.03538666,97.31,97.245,2.38366791]
[1644637899846,0.03538666,97.31,97.26,15.4221]
[1644637900045,36.35718278,97.318,97.26,15.4221]
[1644637900246,36.35718278,97.318,97.261,2.38366791]
[1644637901749,5.139,97.317,97.27,15.4189]
[1644637904248,5.139,97.329,97.27,15.4189]
[1644637904649,0.03538666,97.33,97.27,15.4189]
[1644637904848,5.138,97.34,97.27,15.4189]
[1644637904849,5.138,97.329,97.27,15.4189]
[1644637905050,44.65602607,97.328,97.27,15.4189]
[1644637905650,24.578,97.327,97.27,15.4189]
[1644637905850,29.716,97.327,97.27,15.4189]
[1644637906849,29.716,97.327,97.26,15.4235]
[1644637911157,15.4245,97.32,97.26,15.4235]
[1644637911355,5.139,97.319,97.26,15.4235]
[1644637915059,5.139,97.326,97.26,15.4235]
[1644637922482,5.139,97.326,97.261,2.38366791]
[1644637922682,24.578,97.327,97.28,15.4196]
[1644637924687,5.138,97.326,97.28,15.4196]
[1644637925087,5.138,97.326,97.27,15.4219]
[1644637928196,24.578,97.327,97.27,15.4219]
[1644637928597,5.138,97.326,97.27,15.4219]
[1644637931697,5.138,97.326,97.27,31.72493975]
[1644637932299,24.578,97.327,97.27,31.72493975]
[1644637932700,0.03538666,97.33,97.271,2.38366791]
[1644637932901,0.03538666,97.34,97.29,15.4156]
[1644637933102,0.03538666,97.33,97.29,15.4156]
[1644637933303,5.136,97.351,97.291,24.8148]
[1644637933501,0.03538666,97.34,97.291,24.8148]
[1644637933702,5.17138666,97.35,97.291,24.8148]
[1644637933902,24.1385,97.349,97.291,24.8148]
[1644637934502,5.136,97.348,97.291,24.8148]
[1644637934705,3.636,97.348,97.291,24.8148]
[1644637934902,3.636,97.348,97.3,15.4159]
[1644637937106,5.136,97.359,97.3,50.57800189]
[1644637937308,5.136,97.359,97.301,2.38366791]
[1644637937505,0.03538666,97.36,97.31,15.4097]
[1644637937706,0.03538666,97.37,97.32,14.88]
[1644637938105,0.03538666,97.37,97.321,2.38366791]
[1644637938508,0.03538666,97.37,97.33,15.4093]
[1644637938707,39.7144202,97.388,97.33,15.4093]
[1644637938908,0.03538666,97.38,97.33,15.4093]
[1644637939207,39.7144202,97.388,97.33,15.4093]
[1644637939406,0.03538666,97.38,97.33,15.4093]
[1644637939607,39.7144202,97.388,97.33,15.4093]
[1644637939812,0.03538666,97.38,97.33,15.4093]
[1644637940008,39.7144202,97.388,97.33,15.4093]
[1644637940311,0.63607383,97.347,97.33,34.34226198]
[1644637941511,0.63607383,97.347,97.33,15.4093]
[1644637941910,0.63607383,97.347,97.331,5.136]
[1644637943912,0.63607383,97.347,97.33,15.4093]
[1644637945614,0.67227882,97.38,97.33,15.4093]
[1644637945814,0.63689216,97.38,97.33,15.4093]
[1644637946014,0.67227882,97.38,97.33,15.4093]
[1644637947817,5.135,97.379,97.307,5.135]
[1644637948024,5.135,97.379,97.291,2.38366791]
[1644637948025,5.135,97.379,97.291,5.136]
[1644637948217,14.88,97.37,97.291,5.136]
[1644637948416,0.03538666,97.36,97.291,5.136]
[1644637948618,14.91538666,97.36,97.26,51.3949]
[1644637948816,29.9034,97.359,97.261,28.9637]
[1644637949017,45.69082005,97.358,97.262,38.66637664]
[1644637949220,5.138,97.357,97.262,46.18804455]
[1644637949621,5.138,97.357,97.263,2.38366791]
[1644637949823,5.138,97.357,97.29,15.4181]
[1644637950319,5.138,97.357,97.291,2.38366791]
[1644637951523,5.138,97.357,97.29,15.4181]
[1644637951723,2.38366791,97.356,97.28,15.4195]
[1644637951923,5.136,97.355,97.252,2.38366791]
[1644637952123,5.136,97.355,97.232,5.138]
[1644637952323,27.33866791,97.354,97.227,1.45489964]
[1644637952523,14.91538666,97.34,97.233,3.83856755]
[1644637952825,15.45848666,97.33,97.237,1.45489964]
[1644637953046,46.33600646,97.328,97.237,1.45489964]
[1644637953229,46.33600646,97.328,97.238,2.38366791]
[1644637953230,5.139,97.327,97.238,2.38366791]
[1644637953426,5.139,97.327,97.25,15.4231]
[1644637953827,46.33600646,97.328,97.251,7.52266791]
[1644637954027,46.33600646,97.328,97.251,2.38366791]
[1644637954227,46.33600646,97.328,97.252,7.52266791]
[1644637954430,5.139,97.327,97.252,7.52266791]
[1644637954627,5.139,97.327,97.27,15.4199]
[1644637955829,5.139,97.327,97.271,2.38366791]
[1644637956531,5.139,97.327,97.27,15.4199]
[1644637959835,5.139,97.327,97.251,24.7977]
[1644637960138,0.03538666,97.32,97.231,1.45489964]
[1644637960336,5.139,97.319,97.228,3.83856755]
[1644637961052,5.139,97.319,97.218,44.26515986]
[1644637961053,5.139,97.319,97.224,1.45489964]
[1644637961653,5.139,97.319,97.227,1.45489964]
[1644637961852,5.139,97.319,97.234,1.45489964]
[1644637962053,14.91538666,97.32,97.235,1.45489964]